bitfinex-derivatives/quotes_SOLF0:USTF0_20250428
["timestamp","ask_amount","ask_price","bid_price","bid_amount"]
[1745832000550,6.6026,151.41,151.38,6.6037]
[1745832002853,6.6026,151.41,151.39,6.6033]
[1745832003156,6.6026,151.41,151.35,11.35068592]
[1745832003453,6.6026,151.41,151.38,6.6035]
[1745832004255,11.35068592,151.43,151.35,11.35068592]
[1745832004553,23.28,151.44,151.37,11.35068592]
[1745832004753,23.28,151.44,151.38,23.28]
[1745832004953,6.6016,151.43,151.4,6.6025]
[1745832005551,6.6016,151.43,151.41,6.6024]
[1745832006652,29.8813,151.44,151.41,6.6024]
[1745832007153,6.6016,151.43,151.41,6.6024]
[1745832008656,29.8813,151.44,151.42,6.602]
[1745832009654,6.6015,151.43,151.41,6.6022]
[1745832009852,23.28,151.44,151.41,6.6022]
[1745832011258,6.6018,151.43,151.41,6.6022]
[1745832011560,23.28,151.44,151.41,6.6022]
[1745832011759,29.8814,151.44,151.42,6.602]
[1745832019170,23.28,151.44,151.43,6.6015]
[1745832019379,6.6009,151.45,151.43,6.6015]
[1745832020172,11.35068592,151.45,151.4,6.6026]
[1745832020874,6.602,151.42,151.39,6.6031]
[1745832022673,6.6025,151.41,151.39,6.6031]
[1745832022973,11.35068592,151.45,151.39,6.6031]
[1745832023575,11.35068592,151.43,151.37,6.6039]
[1745832023776,34.63068592,151.43,151.37,6.6039]
[1745832023975,34.63068592,151.43,151.38,6.6035]
[1745832024275,23.28,151.43,151.36,5.8056]
[1745832024776,6.6022,151.42,151.39,6.603]
[1745832024976,6.6022,151.42,151.36,5.8056]
[1745832025377,6.6022,151.42,151.39,6.603]
[1745832026481,6.6017,151.43,151.39,6.603]
[1745832027983,6.6017,151.43,151.4,6.6027]
[1745832031584,7.25708031,151.42,151.4,6.6027]
[1745832032185,7.25708031,151.42,151.41,6.6024]
[1745832032484,7.25708031,151.42,151.38,7.25708031]
[1745832032982,29.8814,151.44,151.39,7.25708031]
[1745832033184,29.8814,151.44,151.4,7.25708031]
[1745832033381,37.13848031,151.44,151.4,7.25708031]
[1745832034184,37.13848031,151.44,151.41,6.6023]
[1745832034387,7.25708031,151.43,151.4,7.25708031]
[1745832034578,7.25708031,151.43,151.39,7.25708031]
[1745832034991,7.25708031,151.43,151.41,6.602]
[1745832035285,13.85878031,151.43,151.41,6.602]
[1745832035482,6.6017,151.43,151.41,6.602]
[1745832035684,13.85878031,151.43,151.41,6.602]
[1745832038089,7.25708031,151.43,151.42,6.602]
[1745832038381,37.13838031,151.44,151.42,6.602]
[1745832038577,30.53708031,151.44,151.39,7.25708031]
[1745832038781,6.6015,151.43,151.41,6.6021]
[1745832040784,37.13838031,151.44,151.42,6.602]
[1745832044896,37.13838031,151.44,151.41,6.6022]
[1745832046497,6.6016,151.43,151.41,6.6022]
[1745832048796,37.13838031,151.44,151.42,6.602]
[1745832050399,6.6015,151.43,151.4,6.6024]
[1745832050593,30.53708031,151.44,151.39,7.25708031]
[1745832051200,30.53708031,151.44,151.42,6.6018]
[1745832051901,37.13838031,151.44,151.42,6.6018]
[1745832052199,30.53708031,151.44,151.41,6.6022]
[1745832052596,7.25708031,151.44,151.41,6.6022]
[1745832053203,7.25708031,151.44,151.4,6.6028]
[1745832053401,23.28,151.46,151.39,7.25708031]
[1745832053600,7.25708031,151.44,151.39,7.25708031]
[1745832053802,7.25708031,151.44,151.42,6.6018]
[1745832054399,7.25708031,151.44,151.43,6.6015]
[1745832054798,6.6009,151.45,151.43,6.6015]
[1745832055015,37.13758031,151.46,151.39,7.25708031]
[1745832055302,30.53708031,151.46,151.41,7.25708031]
[1745832055506,6.6007,151.45,151.41,7.25708031]
[1745832055702,6.6007,151.45,151.43,6.6012]
[1745832056102,37.13748031,151.46,151.41,7.25708031]
[1745832058099,37.13748031,151.46,151.43,6.6012]
[1745832058908,37.13748031,151.46,151.44,6.6011]
[1745832061208,30.53708031,151.46,151.42,7.25708031]
[1745832061409,30.53708031,151.46,151.37,36.4882]
[1745832061410,23.28,151.46,151.43,7.25708031]
[1745832061712,7.25708031,151.47,151.43,7.25708031]
[1745832062508,9.33178031,151.48,151.43,7.25708031]
[1745832062703,30.53708031,151.49,151.44,7.25708031]
[1745832064712,7.25708031,151.48,151.44,7.25708031]
[1745832065406,23.28,151.49,151.44,7.25708031]
[1745832065613,30.53708031,151.49,151.45,7.25708031]
[1745832067312,30.53708031,151.49,151.44,7.25708031]
[1745832070913,23.28,151.49,151.45,7.25708031]
[1745832071117,23.28,151.49,151.46,7.25708031]
[1745832072219,23.28,151.49,151.45,7.25708031]
[1745832072421,7.25708031,151.51,151.46,7.25708031]
[1745832072614,7.25708031,151.51,151.47,7.25708031]
[1745832073321,6.5985,151.5,151.48,6.5993]
[1745832073517,7.25708031,151.51,151.47,7.25708031]
[1745832073818,6.5983,151.51,151.48,6.5991]
[1745832074013,6.5983,151.51,151.47,7.25708031]
[1745832074219,30.51708031,151.52,151.48,7.25708031]
[1745832074617,37.11508031,151.52,151.49,6.5987]
[1745832074822,30.51708031,151.52,151.49,6.5987]
[1745832075023,30.51708031,151.52,151.47,7.25708031]
[1745832075224,13.85538031,151.51,151.48,6.5991]
[1745832075522,7.25708031,151.51,151.48,6.5991]
[1745832075922,13.85538031,151.51,151.48,6.5991]
[1745832076823,13.85538031,151.51,151.49,6.5989]
[1745832077222,13.85538031,151.51,151.47,7.25708031]
[1745832078322,13.85538031,151.51,151.48,6.5991]
[1745832078519,6.5983,151.51,151.47,7.25708031]
[1745832078823,13.85488031,151.52,151.48,7.25708031]
[1745832079323,13.85488031,151.52,151.49,6.5986]
[1745832079525,6.5982,151.51,151.49,6.5986]
[1745832080026,6.5982,151.51,151.48,13.85618031]
[1745832080227,6.5982,151.51,151.48,7.25708031]
[1745832080628,6.5982,151.51,151.49,6.5987]
[1745832081324,13.85498031,151.52,151.49,6.5987]
[1745832081529,6.5979,151.52,151.5,6.5984]
[1745832082828,6.5981,151.51,151.49,6.5988]
[1745832083427,6.5988,151.5,151.48,7.25708031]
[1745832083627,7.25708031,151.52,151.46,7.25708031]
[1745832083828,7.25708031,151.5,151.44,7.25708031]
[1745832084029,6.6001,151.47,151.45,6.6004]
[1745832085130,6.6001,151.47,151.44,13.85798031]
[1745832085929,13.85648031,151.48,151.45,6.6005]
[1745832086931,7.25708031,151.48,151.45,6.6005]
[1745832087127,7.25708031,151.48,151.46,6.6002]
[1745832088330,13.85628031,151.49,151.46,6.6002]
[1745832090929,13.85628031,151.49,151.47,6.5997]
[1745832094235,7.25708031,151.49,151.47,6.5997]
[1745832095236,13.85608031,151.49,151.47,6.5997]
[1745832095631,7.25708031,151.49,151.46,6.6002]
[1745832095937,7.25708031,151.47,151.43,23.26]
[1745832096238,7.25708031,151.46,151.42,7.25708031]
[1745832096537,7.25708031,151.46,151.45,6.6005]
[1745832097337,30.51708031,151.46,151.38,10.29436917]
[1745832097535,7.25708031,151.39,151.37,23.26]
[1745832097837,7.25708031,151.39,151.37,6.6038]
[1745832098145,7.25708031,151.38,151.32,2.0606]
[1745832098431,7.25708031,151.36,151.31,7.25708031]
[1745832098637,7.25708031,151.36,151.32,7.25708031]
[1745832098839,7.25708031,151.37,151.32,7.25708031]
[1745832099028,30.51708031,151.38,151.33,7.25708031]
[1745832099232,23.26,151.39,151.34,7.25708031]
[1745832099534,23.26,151.39,151.37,6.6038]
[1745832101539,11.34321123,151.44,151.35,11.34321123]
[1745832101746,6.6027,151.41,151.35,11.34321123]
[1745832102447,6.6027,151.41,151.38,6.6036]
[1745832104149,6.6022,151.42,151.39,6.6032]
[1745832104352,23.26,151.43,151.35,11.34321123]
[1745832104848,6.6027,151.41,151.38,6.6037]
[1745832106854,6.6029,151.4,151.38,6.6037]
[1745832107151,11.34321123,151.4,151.31,34.62321123]
[1745832107351,6.6044,151.37,151.31,34.62321123]
[1745832107552,23.28,151.39,151.31,34.62321123]
[1745832107754,11.34321123,151.38,151.31,23.28]
[1745832107943,6.6053,151.35,151.31,23.28]
[1745832108148,11.34321123,151.38,151.31,6.6064]
[1745832108553,11.34321123,151.38,151.29,11.34321123]
[1745832109052,11.34321123,151.38,151.31,11.34321123]
[1745832109352,23.28,151.38,151.31,11.34321123]
[1745832109657,29.884,151.38,151.35,6.6049]
[1745832109954,23.28,151.38,151.35,6.6049]
[1745832111955,23.28,151.38,151.36,6.6045]
[1745832112151,6.6035,151.39,151.36,6.6045]
[1745832112751,6.603,151.4,151.33,11.34321123]
[1745832112951,23.28,151.41,151.33,15.25741123]
[1745832113250,29.8826,151.41,151.37,6.6038]
[1745832116070,6.6031,151.4,151.37,6.6038]
[1745832118361,6.6031,151.4,151.38,6.6037]
[1745832118659,6.6026,151.41,151.38,6.6037]
[1745832119157,40.38281123,151.42,151.37,6.604]
[1745832119363,40.38281123,151.42,151.33,15.25741123]
[1745832119662,6.6034,151.39,151.33,15.25741123]
[1745832119862,40.38281123,151.42,151.33,15.25741123]
[1745832120163,6.6031,151.4,151.37,6.6041]
[1745832122465,6.6031,151.4,151.32,23.28]
[1745832122466,11.34321123,151.4,151.32,23.28]
[1745832122864,6.6042,151.38,151.34,6.6051]
[1745832123064,11.34321123,151.4,151.34,6.6051]
[1745832123366,6.6044,151.37,151.34,6.6051]
[1745832123968,6.6052,151.35,151.29,15.22881123]
[1745832124265,11.34321123,151.36,151.29,27.1656]
[1745832124566,6.6053,151.35,151.32,6.6061]
[1745832125061,17.94801123,151.36,151.33,6.6059]
[1745832125566,41.22741123,151.38,151.3,11.34321123]
[1745832125768,34.62321123,151.38,151.34,6.6051]
[1745832125965,34.62321123,151.38,151.29,27.1656]
[1745832126267,6.6052,151.35,151.29,27.1656]
[1745832126468,34.62321123,151.38,151.33,6.6058]
[1745832126668,6.6049,151.36,151.33,6.6058]
[1745832130469,11.34321123,151.34,151.28,6.6079]
[1745832130671,11.34321123,151.32,151.28,6.6079]
[1745832130871,11.34321123,151.32,151.25,23.28]
[1745832131175,11.34321123,151.32,151.26,6.6087]
[1745832131475,23.28,151.33,151.25,23.28]
[1745832131671,23.28,151.33,151.26,11.34321123]
[1745832132970,23.28,151.33,151.28,11.34321123]
[1745832133875,23.28,151.33,151.31,6.6065]
[1745832135677,23.28,151.33,151.32,6.6063]
[1745832135878,23.28,151.33,151.28,11.34321123]
[1745832136279,23.28,151.33,151.31,6.6064]
[1745832136773,23.28,151.33,151.28,11.34321123]
[1745832136973,23.28,151.33,151.32,6.6063]
[1745832137172,23.28,151.36,151.3,11.34321123]
[1745832137475,23.28,151.36,151.34,6.6051]
[1745832137878,23.28,151.36,151.3,11.34321123]
[1745832138180,29.8848,151.36,151.33,6.6057]
[1745832142783,29.8848,151.36,151.3,11.34321123]
[1745832143579,23.28,151.36,151.3,11.34321123]
[1745832143884,23.28,151.36,151.35,6.605]
[1745832145698,35.746,151.39,151.36,6.6045]
[1745832146501,35.746,151.39,151.37,6.604]
[1745832146692,29.8835,151.39,151.37,6.604]
[1745832148296,29.8835,151.39,151.36,6.6044]
[1745832148297,6.6038,151.38,151.36,6.6044]
[1745832151799,29.8835,151.39,151.36,6.6044]
[1745832152099,5.958,151.43,151.32,11.34321123]
[1745832152100,11.34321123,151.42,151.32,11.34321123]
[1745832152299,23.44,151.41,151.34,11.34321123]
[1745832152598,30.0426,151.41,151.34,11.34321123]
[1745832152791,23.44,151.41,151.34,11.34321123]
[1745832152995,30.0426,151.41,151.34,11.34321123]
[1745832153295,5.958,151.43,151.36,11.34321123]
[1745832153296,29.398,151.43,151.36,11.34321123]
[1745832153498,23.44,151.43,151.38,11.34321123]
[1745832153902,505.6205,151.46,151.38,11.34321123]
[1745832154202,30.0405,151.46,151.38,11.34321123]
[1745832154500,30.0405,151.46,151.43,6.6013]
[1745832155100,23.44,151.46,151.44,6.6009]
[1745832155395,23.44,151.46,151.38,11.34321123]
[1745832155797,23.44,151.46,151.4,11.34321123]
[1745832156403,23.44,151.46,151.44,6.6011]
[1745832156798,23.44,151.46,151.45,6.6007]
[1745832157099,23.44,151.46,151.4,11.34321123]
[1745832157301,23.44,151.46,151.44,6.6009]
[1745832158802,23.44,151.46,151.45,6.6007]
[1745832159099,23.44,151.49,151.45,6.6007]
[1745832159301,23.44,151.49,151.41,23.44]
[1745832159502,6.5994,151.48,151.45,6.6004]
[1745832160506,6.5998,151.47,151.44,6.6009]
[1745832161705,17.94271123,151.48,151.45,6.6006]
[1745832162205,6.5995,151.48,151.45,6.6006]
[1745832163902,30.0391,151.49,151.42,11.34321123]
[1745832164099,23.44,151.49,151.42,11.34321123]
[1745832164498,6.5997,151.48,151.45,6.6006]
[1745832165307,6.5998,151.47,151.44,6.6009]
[1745832166007,6.6003,151.46,151.43,6.6013]
[1745832166508,6.6012,151.44,151.39,5.8877]
[1745832167108,6.6012,151.44,151.41,6.6021]
[1745832167305,6.6012,151.44,151.39,5.8877]
[1745832167610,23.44,151.49,151.4,11.34321123]
[1745832167908,6.5996,151.48,151.4,11.34321123]
[1745832168108,23.44,151.49,151.42,11.34321123]
[1745832168309,23.44,151.49,151.42,34.78321123]
[1745832168611,30.0391,151.49,151.46,6.5999]
[1745832169211,23.44,151.49,151.45,6.6006]
[1745832169811,6.5998,151.47,151.45,6.6006]
[1745832170512,6.5996,151.48,151.45,6.6006]
[1745832170903,6.5996,151.48,151.42,23.44]
[1745832171111,6.5996,151.48,151.46,6.6002]
[1745832173314,30.0391,151.49,151.46,6.6002]
[1745832173509,23.44,151.49,151.46,6.6002]
[1745832173913,30.0392,151.49,151.46,6.6002]
[1745832174612,6.5994,151.48,151.46,6.6002]
[1745832175312,6.5994,151.48,151.45,6.6005]
[1745832175811,6.5994,151.48,151.46,6.6001]
[1745832176912,30.0391,151.49,151.46,6.6001]
[1745832181114,30.0391,151.49,151.47,6.5997]
[1745832182415,23.44,151.49,151.47,6.5997]
[1745832183115,30.039,151.49,151.47,6.5997]
[1745832183313,30.039,151.49,151.46,6.6]
[1745832183809,30.039,151.49,151.42,34.78321123]
[1745832184015,30.039,151.49,151.47,6.5998]
[1745832187313,30.039,151.49,151.46,6.6]
[1745832188417,30.039,151.49,151.47,6.5997]
[1745832189122,30.039,151.49,151.46,6.6]
[1745832189415,23.44,151.49,151.42,23.44]
[1745832190217,6.6,151.47,151.45,6.6005]
[1745832194121,11.34321123,151.48,151.4,11.34321123]
[1745832194318,11.34321123,151.44,151.37,23.32]
[1745832194824,6.6016,151.43,151.37,23.32]
[1745832195423,6.602,151.42,151.4,6.6025]
[1745832196325,11.34321123,151.44,151.41,6.6024]
[1745832196725,17.94451123,151.44,151.41,6.6024]
[1745832196923,23.32,151.45,151.42,6.6018]
[1745832198226,6.6012,151.44,151.42,6.6018]
[1745832198928,29.9209,151.45,151.43,6.6013]
[1745832199627,11.34321123,151.44,151.37,23.32]
[1745832200127,11.34321123,151.42,151.34,23.32]
[1745832200428,11.34321123,151.4,151.34,23.32]
[1745832200728,11.34321123,151.4,151.31,23.32]
[1745832201125,6.6042,151.37,151.31,23.32]
[1745832201929,4.44838324,151.36,151.35,6.605]
[1745832203121,6.604,151.38,151.35,6.605]
[1745832203328,4.44568833,151.37,151.35,6.605]
[1745832203625,4.44568833,151.36,151.35,6.605]
[1745832203925,4.44334804,151.36,151.35,6.605]
[1745832205231,4.44138588,151.36,151.35,6.605]
[1745832207132,4.4380666,151.36,151.35,6.605]
[1745832207731,4.4380666,151.36,151.34,6.6053]
[1745832207932,11.34321123,151.4,151.31,23.32]
[1745832208132,4.43667362,151.39,151.31,23.32]
[1745832208332,4.43667362,151.38,151.31,23.32]
[1745832208632,4.43667362,151.37,151.35,6.6048]
[1745832208834,6.6039,151.38,151.35,6.6048]
[1745832208835,4.43667362,151.36,151.35,6.6048]
[1745832209532,6.6039,151.38,151.35,6.6048]
[1745832209733,4.43441493,151.37,151.35,6.6048]
[1745832210034,6.6039,151.38,151.35,6.6048]
[1745832210234,4.43441493,151.37,151.35,6.6048]
[1745832210435,6.6039,151.38,151.35,6.6048]
[1745832210635,4.43354405,151.37,151.35,6.6048]
[1745832210837,6.6039,151.38,151.35,6.6048]
[1745832211229,4.43360761,151.37,151.35,6.6048]
[1745832211438,6.6039,151.38,151.35,6.6048]
[1745832211635,4.43277861,151.37,151.35,6.6048]
[1745832211835,6.6039,151.38,151.35,6.6048]
[1745832212034,4.43274683,151.37,151.35,6.6048]
[1745832212237,4.43276231,151.36,151.35,6.6048]
[1745832213439,11.03776231,151.36,151.31,23.32]
[1745832213643,4.43128347,151.35,151.28,5.8672]
[1745832213838,4.43128347,151.34,151.28,5.8672]
[1745832214035,6.6064,151.32,151.29,6.6073]
[1745832214534,6.6063,151.33,151.29,6.6073]
[1745832214942,11.34321123,151.36,151.29,6.6073]
[1745832215142,6.6064,151.32,151.29,6.6073]
[1745832215544,6.6064,151.32,151.3,6.6072]
[1745832216042,11.34321123,151.36,151.27,23.28]
[1745832216344,4.42486417,151.35,151.32,6.6063]
[1745832216548,4.42486417,151.34,151.32,6.6063]
[1745832216842,6.6051,151.35,151.32,6.6063]
[1745832217043,4.42561587,151.34,151.32,6.6063]
[1745832217244,11.34321123,151.36,151.32,6.6063]
[1745832217545,11.03073708,151.35,151.33,6.6059]
[1745832217746,11.03073708,151.35,151.28,11.34321123]
[1745832217747,4.42553708,151.34,151.28,11.34321123]
[1745832217946,6.6052,151.35,151.28,11.34321123]
[1745832218248,4.42477839,151.34,151.28,11.34321123]
[1745832218446,6.6052,151.35,151.32,6.606]
[1745832218644,4.4239208,151.34,151.32,6.606]
[1745832218839,6.6052,151.35,151.32,6.606]
[1745832219145,4.42445,151.34,151.33,6.6059]
[1745832219446,6.6052,151.35,151.33,6.6059]
[1745832219746,6.6052,151.35,151.32,6.6062]
[1745832221449,6.6052,151.35,151.33,6.6058]
[1745832221848,6.6052,151.35,151.28,11.34321123]
[1745832222150,6.6052,151.35,151.32,6.606]
[1745832222549,6.6052,151.35,151.28,11.34321123]
[1745832223750,6.6052,151.35,151.33,6.6058]
[1745832224149,6.6048,151.36,151.33,6.6058]
[1745832224351,23.28,151.37,151.33,6.6058]
[1745832224549,4.42158795,151.36,151.33,6.6058]
[1745832224750,6.605,151.36,151.33,6.6058]
[1745832224944,6.605,151.36,151.34,6.6054]
[1745832225149,23.28,151.37,151.28,11.34321123]
[1745832225350,6.6051,151.35,151.28,11.34321123]
[1745832225649,6.6051,151.35,151.33,6.6059]
[1745832227951,6.6047,151.36,151.28,11.34321123]
[1745832228154,23.28,151.37,151.28,11.34321123]
[1745832228352,4.42164042,151.36,151.3,11.34321123]
[1745832228547,4.42164042,151.35,151.34,6.6055]
[1745832228757,23.28,151.38,151.3,11.34321123]
[1745832228945,23.28,151.39,151.32,11.34321123]
[1745832229144,4.42294871,151.38,151.36,6.6044]
[1745832229354,23.28,151.39,151.32,11.34321123]
[1745832229553,4.42359525,151.38,151.32,11.34321123]
[1745832229755,6.6039,151.38,151.35,6.6048]
[1745832232355,6.6039,151.38,151.36,6.6046]
[1745832232855,6.6039,151.38,151.35,6.6048]
[1745832233354,4.4298077,151.37,151.35,6.6048]
[1745832233558,23.28,151.39,151.32,11.34321123]
[1745832233752,4.42984371,151.38,151.32,11.34321123]
[1745832233952,23.28,151.39,151.32,11.34321123]
[1745832234153,4.43010846,151.38,151.37,6.604]
[1745832236660,4.43010846,151.38,151.36,6.6044]
[1745832236859,29.8834,151.39,151.36,6.6044]
[1745832237158,4.43564843,151.38,151.36,6.6044]
[1745832237359,4.4375975,151.37,151.36,6.6044]
[1745832238661,4.44055035,151.37,151.36,6.6044]
[1745832241158,4.44055035,151.37,151.35,6.6049]
[1745832241363,4.44055035,151.36,151.35,6.6049]
[1745832244064,23.28,151.39,151.37,6.6037]
[1745832244265,4.44708682,151.38,151.37,6.6037]
[1745832245164,4.44708682,151.38,151.32,11.34321123]
[1745832245356,4.44708682,151.37,151.32,11.34321123]
[1745832245561,4.44708682,151.36,151.35,6.605]
[1745832251761,4.44708682,151.36,151.31,23.28]
[1745832251964,34.62321123,151.42,151.33,11.34321123]
[1745832252166,4.44869917,151.41,151.33,11.34321123]
[1745832252367,4.44869917,151.4,151.33,11.34321123]
[1745832252663,4.44869917,151.39,151.38,6.6035]
[1745832255568,4.446617,151.39,151.38,6.6035]
[1745832259571,29.8822,151.42,151.39,6.603]
[1745832259772,4.44441907,151.41,151.39,6.603]
[1745832260073,4.44441907,151.4,151.35,34.62321123]
[1745832260268,4.44441907,151.39,151.35,34.62321123]
[1745832260569,29.8822,151.42,151.35,34.62321123]
[1745832260770,4.44466503,151.41,151.35,34.62321123]
[1745832260970,4.44466503,151.4,151.35,34.62321123]
[1745832261173,4.44466503,151.39,151.35,34.62321123]
[1745832261364,29.8822,151.42,151.39,6.603]
[1745832261563,4.44435708,151.41,151.39,6.603]
[1745832261765,4.44435708,151.4,151.39,6.603]
[1745832263371,4.44469554,151.4,151.39,6.603]
[1745832264073,29.8822,151.42,151.39,6.603]
[1745832264273,4.44448856,151.41,151.39,6.603]
[1745832264476,4.44448856,151.4,151.39,6.603]
[1745832265372,4.44507465,151.4,151.39,6.603]
[1745832273188,7.2570051,151.42,151.4,6.6025]
[1745832273382,4.44915176,151.41,151.4,6.6025]
[1745832273583,4.44915176,151.41,151.37,7.2570051]
[1745832273784,4.44915176,151.4,151.39,6.6031]
[1745832277586,4.44915176,151.4,151.38,6.6035]
[1745832277785,4.44915176,151.39,151.38,6.6035]
[1745832281001,4.4524029,151.39,151.38,6.6035]
[1745832284902,13.8595051,151.41,151.39,6.6033]
[1745832285102,4.45316491,151.4,151.39,6.6033]
[1745832288802,7.2570051,151.41,151.39,6.6033]
[1745832289008,4.45446504,151.4,151.39,6.6033]
[1745832290808,4.45542336,151.4,151.39,6.6033]
[1745832292813,7.2570051,151.41,151.4,6.6029]
[1745832293013,11.71333262,151.41,151.4,6.6029]
[1745832294415,4.45632752,151.41,151.4,6.6029]
[1745832294815,23.28,151.42,151.41,6.6024]
[1745832295015,27.73784519,151.42,151.41,6.6024]
[1745832296718,27.7393696,151.42,151.41,6.6024]
[1745832298620,4.4593696,151.42,151.41,6.6024]
[1745832300721,4.46015026,151.42,151.41,6.6024]
[1745832307920,4.45507308,151.42,151.41,13.8594051]
[1745832309228,30.5170051,151.48,151.46,6.6]
[1745832309529,4.45059287,151.47,151.46,6.6]
[1745832310825,4.45059287,151.47,151.45,6.6005]
[1745832311123,4.45059287,151.46,151.45,6.6005]
[1745832311630,30.5170051,151.48,151.47,6.5998]
[1745832311832,34.96418958,151.48,151.47,6.5998]
[1745832312329,27.70718448,151.48,151.47,6.5998]
[1745832312529,4.44718448,151.48,151.47,6.5998]
[1745832314528,34.58724424,151.54,151.45,11.32724424]
[1745832314729,4.44031343,151.53,151.45,11.32724424]
[1745832314931,4.44031343,151.52,151.45,11.32724424]
[1745832315228,4.44031343,151.51,151.5,6.5985]
[1745832316229,1.9162,151.59,151.5,41.18724424]
[1745832316527,11.32724424,151.62,151.53,11.32724424]
[1745832316735,13.24344424,151.62,151.53,11.32724424]
[1745832317431,1.9162,151.62,151.58,6.5946]
[1745832317636,1.9162,151.62,151.54,24.3]
[1745832318133,1.9162,151.62,151.59,6.5944]
[1745832318435,4.0102,151.68,151.54,24.3]
[1745832318436,11.32724424,151.67,151.58,24.3]
[1745832318632,1.9162,151.67,151.59,24.3]
[1745832318929,11.32724424,151.66,151.58,24.3]
[1745832319933,11.32724424,151.66,151.6,6.5941]
[1745832322037,17.91894424,151.66,151.6,6.5941]
[1745832322835,1.9162,151.67,151.59,11.32724424]
[1745832323137,1.9162,151.67,151.61,11.32724424]
[1745832323737,1.9162,151.67,151.59,13.21844424]
[1745832323938,8.5073,151.67,151.62,6.5932]
[1745832325236,11.32724424,151.66,151.59,1.8912]
[1745832325638,11.32724424,151.66,151.61,6.5937]
[1745832326138,6.5921,151.65,151.61,6.5937]
[1745832326838,17.91894424,151.66,151.62,6.5932]
[1745832327234,11.32724424,151.66,151.59,1.8912]
[1745832327438,11.32724424,151.66,150.02,2.42213953]
[1745832327439,174.28,151.65,151.44,1.14788976]
[1745832327636,11.32724424,151.48,151.31,13.2133]
[1745832327934,11.32724424,151.48,151.41,6.602]
[1745832328140,24.28,151.47,151.38,11.32724424]
[1745832328441,24.28,151.47,151.42,6.6019]
[1745832329041,24.28,151.47,151.41,6.6024]
[1745832329740,30.8799,151.47,151.41,6.6024]
[1745832333442,30.8799,151.47,151.42,6.602]
[1745832335744,30.8799,151.47,151.43,6.6013]
[1745832336546,6.6003,151.46,151.42,6.6018]
[1745832336741,6.6003,151.46,151.38,28.2834]
[1745832337245,6.6008,151.45,151.4,6.6027]
[1745832337544,18.13179362,151.44,151.35,24.28]
[1745832337746,24.28,151.43,151.35,24.28]
[1745832338648,24.28,151.43,151.39,6.6032]
[1745832339549,24.28,151.43,151.35,24.28]
[1745832340946,24.28,151.43,151.41,6.6021]
[1745832342147,24.28,151.43,151.42,6.602]
[1745832345048,24.28,151.43,151.35,24.28]
[1745832345448,26.3018,151.43,151.35,24.28]
[1745832345747,18.13179362,151.41,151.32,6.34764936]
[1745832346042,18.13179362,151.41,151.32,3.9717]
[1745832346253,24.73589362,151.38,151.34,6.6052]
[1745832346445,49.83589362,151.38,151.34,6.6052]
[1745832346747,49.83589362,151.38,151.28,26.24976707]
[1745832347450,43.23179362,151.38,151.36,6.6045]
[1745832349150,43.23179362,151.38,151.35,6.6049]
[1745832349550,36.4467409,151.38,151.35,6.6049]
[1745832351353,11.3467409,151.36,151.34,6.6053]
[1745832351555,11.3467409,151.36,151.28,25.1]
[1745832351851,17.9514409,151.36,151.28,25.1]
[1745832352358,11.3467409,151.36,151.33,6.6056]
[1745832353449,36.4467409,151.38,151.28,36.4467409]
[1745832354056,36.4467409,151.38,151.35,6.6048]
[1745832355356,43.0506409,151.38,151.35,6.6048]
[1745832356755,36.4467409,151.38,151.36,6.6044]
[1745832356956,11.3467409,151.38,151.28,36.4467409]
[1745832357158,36.4667409,151.38,151.3,11.3467409]
[1745832357461,36.4667409,151.38,151.36,6.6043]
[1745832359459,36.4667409,151.38,151.37,6.6042]
[1745832359661,36.4667409,151.38,151.3,11.3467409]
[1745832360261,36.4667409,151.38,151.36,6.6044]
[1745832361661,36.4667409,151.38,151.37,6.6042]
[1745832361856,36.4667409,151.38,151.3,11.3467409]